[Event "Božićni turnir u VaraždinskimToplicama 26.12.2025."]
[Site "Varazdinske Toplice, Croatia"]
[Date "2025.12.26"]
[Round "7.8"]
[White "Marcec, Fran"]
[Black "Kodric, Vladimir"]
[Result "1/2-1/2"]
[TimeControl "10"]
[WhiteFideId "79313183"]
[BlackFideId "14604264"]
[WhiteElo "1150"]
[BlackElo "1920"]

1. b4 {[%clk 00:09:59]} {[%emt 00:00:03]} d5 {[%clk 00:09:58]} {[%emt
00:00:02]} 2. Bb2 {[%clk 00:09:58]} Bf5 {[%clk 00:09:56]} {[%emt 00:00:02]} 3.
e3 {[%clk 00:09:57]} e6 {[%clk 00:09:54]} {[%emt 00:00:02]} 4. a3 {[%clk
00:09:56]} {[%emt 00:00:01]} Nd7 {[%clk 00:09:53]} 5. d4 {[%clk 00:09:52]}
{[%emt 00:00:04]} Ngf6 {[%clk 00:09:52]} {[%emt 00:00:02]} 6. Bd3 {[%clk
00:09:50]} {[%emt 00:00:01]} Bxd3 {[%clk 00:09:48]} {[%emt 00:00:04]} 7. Qxd3
{[%clk 00:09:49]} {[%emt 00:00:01]} c6 {[%clk 00:09:46]} {[%emt 00:00:03]} 8.
Nd2 {[%clk 00:09:46]} {[%emt 00:00:03]} a5 {[%clk 00:09:43]} {[%emt 00:00:03]}
9. c3 {[%clk 00:09:35]} {[%emt 00:00:11]} Be7 {[%clk 00:09:41]} {[%emt
00:00:02]} 10. Ngf3 {[%clk 00:09:33]} {[%emt 00:00:02]} O-O {[%clk 00:09:37]}
{[%emt 00:00:03]} 11. O-O {[%clk 00:09:31]} {[%emt 00:00:02]} Nb6 {[%clk
00:09:33]} {[%emt 00:00:04]} 12. Qc2 {[%clk 00:09:01]} {[%emt 00:00:31]} Qc7
{[%clk 00:09:29]} {[%emt 00:00:04]} 13. Ne5 {[%clk 00:08:57]} {[%emt 00:00:04]}
Nfd7 {[%clk 00:09:20]} {[%emt 00:00:08]} 14. f4 {[%clk 00:08:50]} {[%emt
00:00:07]} f6 {[%clk 00:09:17]} {[%emt 00:00:04]} 15. Nd3 {[%clk 00:09:34]}
{[%emt 00:00:23]} Nb8 {[%clk 00:09:07]} {[%emt 00:00:27]} 16. Nc5 {[%clk
00:09:19]} {[%emt 00:00:15]} Qc8 {[%clk 00:08:54]} {[%emt 00:00:13]} 17. Ndb3
{[%clk 00:09:12]} {[%emt 00:00:08]} a4 {[%clk 00:08:51]} {[%emt 00:00:03]} 18.
Nd2 {[%clk 00:09:10]} {[%emt 00:00:02]} N8d7 {[%clk 00:08:49]} {[%emt
00:00:02]} 19. Rf3 {[%clk 00:08:59]} {[%emt 00:00:11]} Nxc5 {[%clk 00:08:20]}
{[%emt 00:00:28]} 20. bxc5 {[%clk 00:08:57]} {[%emt 00:00:03]} Nd7 {[%clk
00:08:14]} {[%emt 00:00:05]} 21. c4 {[%clk 00:08:55]} {[%emt 00:00:03]} b6
{[%clk 00:08:09]} {[%emt 00:00:04]} 22. cxb6 {[%clk 00:08:43]} {[%emt
00:00:13]} Nxb6 {[%clk 00:08:07]} {[%emt 00:00:02]} 23. c5 {[%clk 00:08:37]}
{[%emt 00:00:05]} Nd7 {[%clk 00:08:06]} {[%emt 00:00:02]} 24. Rh3 {[%clk
00:08:35]} {[%emt 00:00:02]} g6 {[%clk 00:08:03]} {[%emt 00:00:03]} 25. Nf3
{[%clk 00:08:20]} {[%emt 00:00:15]} Rf7 {[%clk 00:08:01]} {[%emt 00:00:01]} 26.
Bc3 {[%clk 00:08:18]} {[%emt 00:00:03]} Qa6 {[%clk 00:07:53]} {[%emt 00:00:08]}
27. Rb1 {[%clk 00:08:07]} {[%emt 00:00:11]} Nf8 {[%clk 00:07:30]} {[%emt
00:00:22]} 28. Rb6 {[%clk 00:07:53]} {[%emt 00:00:14]} Qc8 {[%clk 00:07:29]}
{[%emt 00:00:01]} 29. e4 {[%clk 00:07:33]} {[%emt 00:00:21]} Bd8 {[%clk
00:07:28]} {[%emt 00:00:01]} 30. Rb1 {[%clk 00:07:27]} {[%emt 00:00:06]} Qa6
{[%clk 00:07:19]} {[%emt 00:00:09]} 31. e5 {[%clk 00:07:23]} {[%emt 00:00:05]}
Qc4 {[%clk 00:07:05]} {[%emt 00:00:12]} 32. Rb4 {[%clk 00:07:04]} {[%emt
00:00:20]} Qa6 {[%clk 00:07:03]} {[%emt 00:00:01]} 33. Rg3 {[%clk 00:06:16]}
{[%emt 00:00:48]} Rb7 {[%clk 00:06:34]} {[%emt 00:00:28]} 34. exf6 {[%clk
00:05:54]} {[%emt 00:00:24]} Rxb4 {[%clk 00:06:30]} {[%emt 00:00:04]} 35. Bxb4
{[%clk 00:05:52]} {[%emt 00:00:02]} Bxf6 {[%clk 00:06:27]} {[%emt 00:00:02]} 36.
Ne5 {[%clk 00:05:51]} {[%emt 00:00:02]} Bxe5 {[%clk 00:06:20]} {[%emt
00:00:07]} 37. fxe5 {[%clk 00:05:50]} {[%emt 00:00:02]} Ra7 {[%clk 00:06:14]}
{[%emt 00:00:05]} 38. Rf3 {[%clk 00:05:38]} {[%emt 00:00:11]} Rf7 {[%clk
00:06:11]} {[%emt 00:00:03]} 39. Rxf7 {[%clk 00:05:34]} {[%emt 00:00:05]} Kxf7
{[%clk 00:06:10]} {[%emt 00:00:02]} 40. Qf2+ {[%clk 00:05:33]} Kg8 {[%clk
00:06:09]} 41. h4 {[%clk 00:05:26]} {[%emt 00:00:07]} Qd3 {[%clk 00:06:06]}
{[%emt 00:00:02]} 42. Kh2 {[%clk 00:05:11]} {[%emt 00:00:16]} h5 {[%clk
00:05:57]} {[%emt 00:00:09]} 43. Kh1 {[%clk 00:04:47]} {[%emt 00:00:23]} Qd1+
{[%clk 00:05:44]} {[%emt 00:00:12]} 44. Kh2 {[%emt 00:00:16]} Qg4 {[%clk
00:05:37]} {[%emt 00:00:01]} 45. Bd2 {[%clk 00:04:31]} {[%emt 00:00:09]} Qf5
{[%clk 00:05:34]} {[%emt 00:00:03]} 46. Qe2 {[%clk 00:04:22]} {[%emt 00:00:08]}
Qc2 {[%clk 00:05:28]} {[%emt 00:00:06]} 47. Qe3 {[%clk 00:04:14]} {[%emt
00:00:09]} Kf7 {[%clk 00:05:02]} {[%emt 00:00:25]} 48. Qf4+ {[%clk 00:04:08]}
{[%emt 00:00:06]} Qf5 {[%clk 00:05:00]} {[%emt 00:00:02]} 49. Qe3 {[%clk
00:04:07]} {[%emt 00:00:02]} Qg4 {[%clk 00:04:55]} {[%emt 00:00:04]} 50. Qf2+
{[%clk 00:04:00]} {[%emt 00:00:07]} Kg8 {[%clk 00:04:51]} {[%emt 00:00:04]} 51.
Bg5 {[%clk 00:03:59]} {[%emt 00:00:01]} Qf5 {[%clk 00:04:49]} {[%emt 00:00:02]}
52. Qd2 {[%clk 00:03:55]} {[%emt 00:00:04]} Qe4 {[%clk 00:04:45]} {[%emt
00:00:04]} 53. Qd1 {[%clk 00:03:46]} {[%emt 00:00:09]} Nh7 {[%clk 00:04:37]}
{[%emt 00:00:08]} 54. Qxa4 {[%emt 00:00:11]} Nxg5 {[%clk 00:04:34]} {[%emt
00:00:01]} 55. hxg5 {[%clk 00:03:35]} {[%emt 00:00:02]} Qh4+ {[%clk 00:04:30]}
{[%emt 00:00:04]} 56. Kg1 {[%emt 00:00:03]} Qe1+ {[%clk 00:04:27]} 57. Kh2
{[%clk 00:03:33]} {[%emt 00:00:01]} Qh4+ {[%clk 00:04:26]} 58. Kg1 {[%clk
00:03:32]} {[%emt 00:00:02]} Qe1+ {[%clk 00:04:24]} {[%emt 00:00:01]} 1/2-1/2

[Event "Božićni turnir u VaraždinskimToplicama 26.12.2025."]
[Site "Varazdinske Toplice, Croatia"]
[Date "2025.12.26"]
[Round "7.9"]
[White "Vukmirovic, Dusan"]
[Black "Jakupec, Denis"]
[Result "1-0"]
[TimeControl "10"]
[WhiteFideId "938785"]
[BlackFideId "14503310"]
[WhiteElo "2082"]
[BlackElo "1971"]

1. e4 {[%clk 00:10:00]} {[%emt 00:02:57]} c5 {[%clk 00:09:58]} {[%emt
00:00:06]} 2. Nf3 {[%clk 00:09:57]} {[%emt 00:00:01]} d6 {[%clk 00:09:54]}
{[%emt 00:00:04]} 3. d4 {[%clk 00:09:56]} cxd4 {[%clk 00:09:52]} {[%emt
00:00:02]} 4. Nxd4 {[%clk 00:09:55]} Nf6 {[%clk 00:09:49]} {[%emt 00:00:02]} 5.
Nc3 {[%clk 00:09:54]} {[%emt 00:00:02]} Nc6 {[%clk 00:09:48]} {[%emt 00:00:01]}
6. Bc4 {[%clk 00:09:47]} {[%emt 00:00:07]} Qb6 {[%clk 00:09:40]} {[%emt
00:00:07]} 7. Nxc6 {[%clk 00:09:38]} {[%emt 00:00:10]} bxc6 {[%clk 00:09:37]}
{[%emt 00:00:03]} 8. Bb3 {[%clk 00:09:35]} {[%emt 00:00:03]} g6 {[%clk
00:09:33]} {[%emt 00:00:03]} 9. Be3 {[%clk 00:09:33]} {[%emt 00:00:02]} Qc7
{[%clk 00:09:32]} {[%emt 00:00:01]} 10. Qd2 {[%clk 00:09:31]} {[%emt 00:00:03]}
Bg7 {[%clk 00:09:30]} {[%emt 00:00:02]} 11. Bh6 {[%clk 00:09:29]} {[%emt
00:00:02]} O-O {[%clk 00:09:24]} {[%emt 00:00:05]} 12. h4 {[%clk 00:09:27]}
{[%emt 00:00:03]} a5 {[%clk 00:09:16]} {[%emt 00:00:07]} 13. h5 {[%clk
00:09:21]} {[%emt 00:00:06]} a4 {[%clk 00:09:08]} {[%emt 00:00:08]} 14. Bc4
{[%clk 00:09:15]} {[%emt 00:00:07]} Rb8 {[%clk 00:08:36]} {[%emt 00:00:32]} 15.
hxg6 {[%clk 00:09:07]} {[%emt 00:00:08]} 1-0

[Event "Božićni turnir u VaraždinskimToplicama 26.12.2025."]
[Site "Varazdinske Toplice, Croatia"]
[Date "2025.12.26"]
[Round "7.10"]
[White "Hostnjak, Hrvoje"]
[Black "Kovacek, Pavlo"]
[Result "1-0"]
[TimeControl "10"]
[WhiteFideId "14551470"]
[BlackFideId "14559200"]
[WhiteElo "1704"]
[BlackElo "1704"]

1. e4 {[%clk 00:09:59]} {[%emt 00:00:01]} c5 {[%clk 00:09:59]} {[%emt
00:00:02]} 2. Be2 {[%clk 00:09:58]} Nc6 {[%clk 00:09:57]} {[%emt 00:00:02]} 3.
d3 {[%clk 00:09:57]} d6 {[%clk 00:09:52]} {[%emt 00:00:04]} 4. c3 {[%clk
00:09:57]} g6 {[%clk 00:09:50]} {[%emt 00:00:03]} 5. f4 {[%clk 00:09:56]} Bg7
{[%clk 00:09:48]} {[%emt 00:00:01]} 6. Nf3 {[%clk 00:09:55]} e5 {[%clk
00:09:45]} {[%emt 00:00:03]} 7. Be3 {[%clk 00:09:53]} {[%emt 00:00:02]} Nge7
{[%clk 00:09:43]} {[%emt 00:00:02]} 8. Na3 {[%clk 00:09:52]} {[%emt 00:00:01]}
b6 {[%clk 00:09:33]} {[%emt 00:00:11]} 9. O-O {[%clk 00:09:50]} {[%emt
00:00:02]} f5 {[%clk 00:09:27]} {[%emt 00:00:05]} 10. Qb3 {[%clk 00:09:29]}
{[%emt 00:00:21]} Na5 {[%clk 00:09:00]} {[%emt 00:00:27]} 11. Qc2 {[%clk
00:09:27]} {[%emt 00:00:02]} Nac6 {[%clk 00:08:49]} {[%emt 00:00:11]} 12. Rad1
{[%clk 00:09:12]} {[%emt 00:00:14]} O-O {[%clk 00:08:45]} {[%emt 00:00:04]} 13.
Ng5 {[%clk 00:09:07]} {[%emt 00:00:06]} d5 {[%clk 00:07:17]} {[%emt 00:01:28]}
14. fxe5 {[%clk 00:08:16]} {[%emt 00:00:51]} h6 {[%clk 00:06:44]} {[%emt
00:00:33]} 15. Nf3 {[%clk 00:08:05]} {[%emt 00:00:11]} f4 {[%clk 00:06:25]}
{[%emt 00:00:19]} 16. Bf2 {[%clk 00:07:44]} {[%emt 00:00:20]} Nxe5 {[%clk
00:06:15]} {[%emt 00:00:11]} 17. Nxe5 {[%clk 00:07:43]} {[%emt 00:00:01]} Bxe5
{[%clk 00:06:13]} {[%emt 00:00:02]} 18. d4 {[%clk 00:07:42]} cxd4 {[%clk
00:05:24]} {[%emt 00:00:49]} 19. cxd4 {[%clk 00:06:49]} {[%emt 00:00:54]} Bg7
{[%clk 00:05:19]} {[%emt 00:00:05]} 20. e5 {[%clk 00:06:13]} {[%emt 00:00:36]}
Bf5 {[%clk 00:05:14]} {[%emt 00:00:05]} 21. Bd3 {[%clk 00:06:08]} {[%emt
00:00:05]} Rc8 {[%clk 00:05:11]} {[%emt 00:00:03]} 22. Qd2 {[%clk 00:06:07]} g5
{[%clk 00:05:07]} {[%emt 00:00:04]} 23. Nb5 {[%clk 00:05:58]} {[%emt 00:00:09]}
Rc6 {[%clk 00:04:18]} {[%emt 00:00:49]} 24. Nxa7 {[%clk 00:04:49]} {[%emt
00:01:09]} Rc7 {[%clk 00:03:33]} {[%emt 00:00:45]} 25. Nb5 {[%clk 00:04:48]}
{[%emt 00:00:01]} Rc6 {[%clk 00:03:23]} {[%emt 00:00:11]} 26. Rc1 {[%clk
00:04:25]} {[%emt 00:00:22]} Rg6 {[%clk 00:03:18]} {[%emt 00:00:05]} 27. Bxf5
{[%clk 00:04:15]} {[%emt 00:00:09]} Nxf5 {[%clk 00:03:13]} {[%emt 00:00:06]} 28.
Qd3 {[%clk 00:04:12]} {[%emt 00:00:03]} g4 {[%clk 00:02:29]} {[%emt 00:00:44]}
29. Nd6 {[%clk 00:03:53]} {[%emt 00:00:19]} Rg5 {[%clk 00:02:27]} {[%emt
00:00:02]} 30. Nxf5 {[%clk 00:03:48]} {[%emt 00:00:05]} Rfxf5 {[%clk 00:02:16]}
{[%emt 00:00:11]} 31. Bh4 {[%clk 00:03:47]} Qf8 {[%clk 00:01:46]} {[%emt
00:00:30]} 32. Bxg5 {[%clk 00:03:43]} {[%emt 00:00:04]} hxg5 {[%clk 00:01:43]}
{[%emt 00:00:03]} 33. Rc6 {[%clk 00:03:06]} {[%emt 00:00:37]} g3 {[%clk
00:00:58]} {[%emt 00:00:45]} 34. Rfc1 {[%clk 00:02:59]} {[%emt 00:00:07]} Qf7
{[%clk 00:00:51]} {[%emt 00:00:07]} 35. Rc8+ {[%clk 00:02:53]} {[%emt
00:00:06]} Kh7 {[%clk 00:00:43]} {[%emt 00:00:08]} 36. R1c7 {[%clk 00:02:40]}
{[%emt 00:00:13]} Qg6 {[%clk 00:00:39]} {[%emt 00:00:05]} 37. Rc6 {[%clk
00:02:36]} {[%emt 00:00:03]} Qf7 {[%clk 00:00:37]} {[%emt 00:00:01]} 38. R8c7
{[%clk 00:02:34]} {[%emt 00:00:02]} Qf8 {[%clk 00:00:35]} {[%emt 00:00:03]} 39.
Qf3 {[%clk 00:02:28]} {[%emt 00:00:06]} Qb4 {[%clk 00:00:22]} {[%emt 00:00:13]}
40. Qh5+ {[%clk 00:02:25]} {[%emt 00:00:03]} Kg8 {[%clk 00:00:21]} {[%emt
00:00:01]} 41. Rc8+ {[%clk 00:02:21]} {[%emt 00:00:04]} Rf8 {[%clk 00:00:18]}
{[%emt 00:00:03]} 42. Rxf8+ {[%clk 00:02:17]} {[%emt 00:00:04]} Qxf8 {[%clk
00:00:14]} {[%emt 00:00:04]} 43. Qg4 {[%clk 00:01:56]} {[%emt 00:00:21]} gxh2+
{[%clk 00:00:13]} {[%emt 00:00:02]} 44. Kxh2 {[%clk 00:01:54]} {[%emt
00:00:02]} Qe8 {[%clk 00:00:07]} {[%emt 00:00:05]} 45. Rc8 {[%clk 00:10:00]}
{[%emt 00:00:09]} 1-0

[Event "Božićni turnir u VaraždinskimToplicama 26.12.2025."]
[Site "Varazdinske Toplice, Croatia"]
[Date "2025.12.26"]
[Round "7.11"]
[White "Obad, Damir"]
[Black "Matkun, Josip"]
[Result "0-1"]
[TimeControl "10"]
[WhiteFideId "14514532"]
[BlackFideId "14513765"]
[WhiteElo "1999"]
[BlackElo "1832"]

1. e4 {[%clk 00:09:57]} {[%emt 00:00:03]} c5 {[%clk 00:09:58]} {[%emt
00:00:02]} 2. Nf3 {[%clk 00:09:54]} {[%emt 00:00:04]} d6 {[%clk 00:09:56]}
{[%emt 00:00:01]} 3. d4 {[%clk 00:09:53]} {[%emt 00:00:02]} cxd4 {[%clk
00:09:55]} {[%emt 00:00:02]} 4. Nxd4 {[%clk 00:09:51]} {[%emt 00:00:01]} Nf6
{[%clk 00:09:53]} {[%emt 00:00:02]} 5. Nc3 {[%clk 00:09:50]} {[%emt 00:00:01]}
e6 {[%clk 00:09:50]} {[%emt 00:00:03]} 6. Ndb5 {[%clk 00:09:38]} {[%emt
00:00:12]} Nc6 {[%clk 00:09:32]} {[%emt 00:00:19]} 7. Bg5 {[%clk 00:09:27]}
{[%emt 00:00:09]} Be7 {[%clk 00:09:20]} {[%emt 00:00:13]} 8. Be2 {[%clk
00:08:41]} {[%emt 00:00:46]} h6 {[%clk 00:09:10]} {[%emt 00:00:10]} 9. Bh4
{[%clk 00:08:37]} {[%emt 00:00:03]} a6 {[%clk 00:08:46]} {[%emt 00:00:25]} 10.
Nd4 {[%clk 00:08:36]} {[%emt 00:00:02]} Bd7 {[%clk 00:08:33]} {[%emt 00:00:12]}
11. O-O {[%clk 00:08:19]} {[%emt 00:00:17]} Qc7 {[%clk 00:08:05]} {[%emt
00:00:28]} 12. Bg3 {[%clk 00:07:35]} {[%emt 00:00:44]} Rc8 {[%clk 00:07:55]}
{[%emt 00:00:10]} 13. Kh1 {[%clk 00:07:24]} {[%emt 00:00:10]} O-O {[%clk
00:07:44]} {[%emt 00:00:11]} 14. f4 {[%clk 00:07:14]} {[%emt 00:00:11]} b5
{[%clk 00:07:15]} {[%emt 00:00:29]} 15. Nxc6 {[%clk 00:06:57]} {[%emt
00:00:17]} Bxc6 {[%clk 00:07:03]} {[%emt 00:00:11]} 16. e5 {[%clk 00:06:53]}
{[%emt 00:00:05]} dxe5 {[%clk 00:06:41]} {[%emt 00:00:22]} 17. fxe5 {[%clk
00:06:48]} {[%emt 00:00:05]} Ne4 {[%clk 00:06:24]} {[%emt 00:00:17]} 18. Nxe4
{[%clk 00:06:30]} {[%emt 00:00:18]} Bxe4 {[%clk 00:06:21]} {[%emt 00:00:01]} 19.
c3 {[%clk 00:06:21]} {[%emt 00:00:11]} Rcd8 {[%clk 00:05:59]} {[%emt 00:00:23]}
20. Qe1 {[%clk 00:06:19]} {[%emt 00:00:01]} Bd5 {[%clk 00:05:46]} {[%emt
00:00:12]} 21. Bf4 {[%clk 00:06:14]} {[%emt 00:00:05]} Qc6 {[%clk 00:05:17]}
{[%emt 00:00:30]} 22. Qg3 {[%clk 00:06:12]} {[%emt 00:00:03]} Kh8 {[%clk
00:05:01]} {[%emt 00:00:15]} 23. Qh3 {[%clk 00:05:48]} {[%emt 00:00:23]} Kh7
{[%clk 00:04:42]} {[%emt 00:00:19]} 24. Rae1 {[%clk 00:05:33]} {[%emt
00:00:15]} Be4 {[%clk 00:03:37]} {[%emt 00:01:05]} 25. Rf2 {[%clk 00:03:36]}
{[%emt 00:01:56]} Bf5 {[%clk 00:02:36]} {[%emt 00:01:03]} 26. Bg4 {[%clk
00:03:02]} {[%emt 00:00:33]} Bg6 {[%clk 00:02:30]} {[%emt 00:00:06]} 27. b4
{[%clk 00:02:52]} {[%emt 00:00:12]} Rd3 {[%clk 00:02:18]} {[%emt 00:00:10]} 28.
Re3 {[%clk 00:02:32]} {[%emt 00:00:20]} Qxc3 {[%clk 00:02:10]} {[%emt
00:00:09]} 29. Rxd3 {[%clk 00:02:18]} {[%emt 00:00:15]} Qxd3 {[%clk 00:02:08]}
{[%emt 00:00:01]} 30. Qxd3 {[%clk 00:02:08]} {[%emt 00:00:09]} Bxd3 {[%clk
00:02:07]} {[%emt 00:00:02]} 31. Rd2 {[%clk 00:02:01]} {[%emt 00:00:07]} Bc4
{[%clk 00:02:04]} {[%emt 00:00:03]} 32. Bf3 {[%clk 00:01:45]} {[%emt 00:00:15]}
Bxb4 {[%clk 00:01:59]} {[%emt 00:00:06]} 33. Be4+ {[%clk 00:01:38]} {[%emt
00:00:06]} Kg8 {[%clk 00:01:57]} {[%emt 00:00:03]} 34. Rd7 {[%clk 00:01:34]}
{[%emt 00:00:05]} Rc8 {[%clk 00:01:48]} {[%emt 00:00:07]} 35. g4 {[%clk
00:01:32]} {[%emt 00:00:03]} a5 {[%clk 00:01:42]} {[%emt 00:00:06]} 36. h4
{[%clk 00:01:27]} {[%emt 00:00:05]} Kf8 {[%clk 00:01:40]} {[%emt 00:00:02]} 37.
g5 {[%clk 00:01:24]} {[%emt 00:00:03]} hxg5 {[%clk 00:01:38]} {[%emt 00:00:02]}
38. Bxg5 {[%clk 00:01:21]} {[%emt 00:00:02]} a4 {[%clk 00:01:33]} {[%emt
00:00:05]} 39. h5 {[%clk 00:01:18]} {[%emt 00:00:04]} Ba3 {[%clk 00:01:15]}
{[%emt 00:00:18]} 40. Bf6 {[%clk 00:01:03]} {[%emt 00:00:15]} Bxa2 {[%clk
00:01:03]} {[%emt 00:00:12]} 41. Bg6 {[%clk 00:00:44]} {[%emt 00:00:19]} Bd5+
{[%clk 00:00:56]} {[%emt 00:00:06]} 42. Kh2 {[%clk 00:00:44]} fxg6 {[%clk
00:00:34]} {[%emt 00:00:23]} 43. Bxg7+ {[%clk 00:00:29]} {[%emt 00:00:15]} Kg8
{[%clk 00:00:33]} {[%emt 00:00:01]} 44. h6 {[%clk 00:00:28]} {[%emt 00:00:02]}
Rc2+ {[%clk 00:00:29]} {[%emt 00:00:03]} 45. Kg3 {[%clk 00:00:26]} {[%emt
00:00:02]} Bc1 {[%clk 00:00:25]} {[%emt 00:00:05]} 46. Rd8+ {[%clk 00:00:21]}
{[%emt 00:00:05]} Kf7 {[%clk 00:00:16]} {[%emt 00:00:08]} 47. Rf8+ {[%clk
00:00:19]} {[%emt 00:00:01]} Ke7 {[%clk 00:00:15]} 48. Rh8 {[%clk 00:00:17]}
{[%emt 00:00:03]} Rc3+ {[%clk 00:00:13]} {[%emt 00:00:04]} 49. Kg4 {[%clk
00:00:13]} {[%emt 00:01:10]} Bxh6 {[%clk 00:01:05]} {[%emt 00:00:05]} 50. Bxh6
{[%clk 00:00:13]} {[%emt 00:00:01]} Kd7 {[%clk 00:01:01]} {[%emt 00:00:05]} 51.
Rh7+ {[%clk 00:00:11]} {[%emt 00:00:02]} Kc6 {[%clk 00:00:59]} 52. Bg5 {[%clk
00:00:09]} {[%emt 00:00:02]} a3 {[%clk 00:00:57]} {[%emt 00:00:02]} 53. Bd8
{[%clk 00:00:08]} {[%emt 00:00:01]} Kc5 {[%clk 00:00:53]} {[%emt 00:00:04]} 54.
Rc7+ {[%clk 00:00:06]} {[%emt 00:00:02]} Kd4 {[%clk 00:00:49]} {[%emt
00:00:04]} 55. Ra7 {[%clk 00:00:03]} {[%emt 00:00:03]} b4 {[%clk 00:00:46]}
{[%emt 00:00:02]} 56. Ra4 {[%clk 00:00:02]} {[%emt 00:00:02]} Rc4 {[%clk
00:00:43]} {[%emt 00:00:03]} 57. Bb6+ {[%clk 00:00:01]} {[%emt 00:00:01]} Ke4
{[%clk 00:00:41]} {[%emt 00:00:01]} 58. Ba5 {[%emt 00:00:10]} 0-1